bitfinex/quotes_ETHUSD_20240928
["timestamp","ask_amount","ask_price","bid_price","bid_amount"]
[1727529102060,3.2187189,2660.8,2660.5,3.70867]
[1727529103267,0.3931189,2660.8,2660.5,3.70867]
[1727529103430,0.3931189,2660.8,2660.5,7.46728]
[1727529103927,0.3931189,2660.8,2660.5,3.70867]
[1727529105169,0.8256,2660.7,2660.3,3.75888]
[1727529105463,0.8256,2660.7,2660.3,7.51776]
[1727529105666,4.58411,2660.7,2660.2,3.75909]
[1727529105873,4.58411,2660.7,2660.2,3.0]
[1727529106032,3.75856,2660.6,2660.1,3.75917]
[1727529106226,2.3931189,2660.8,2659.9,3.8894895]
[1727529106227,0.8256,2660.4,2659.9,3.8894895]
[1727529106565,0.8256,2660.4,2660.1,3.75923]
[1727529107773,0.8256,2660.4,2660.0,3.75939]
[1727529107929,0.05720683,2660.3,2660.0,3.75939]
[1727529110070,0.05720683,2660.3,2660.1,3.75925]
[1727529111229,0.05720683,2660.3,2659.9,3.8894695]
[1727529111434,0.05720683,2660.3,2660.0,3.75938]
[1727529115804,0.05720683,2660.3,2659.9,0.1300495]
[1727529116011,0.05720683,2660.3,2659.9,3.8895695]
[1727529116902,0.05720683,2660.3,2660.0,3.7593]
[1727529118073,0.05720683,2660.3,2659.9,0.1300495]
[1727529118074,3.81619683,2660.3,2659.9,0.1300495]
[1727529118278,7.57526683,2660.3,2659.9,0.1300495]
[1727529118513,0.7581,2660.1,2659.9,0.1300495]
[1727529118870,0.05698893,2660.0,2659.9,0.1300495]
[1727529123834,0.05698893,2660.0,2659.9,3.8895795]
[1727529124040,0.05698893,2660.0,2659.9,10.59923703]
[1727529124327,0.3931416,2660.4,2660.2,3.759]
[1727529124838,0.05482678,2660.3,2660.2,3.759]
[1727529125311,0.05482678,2660.3,2660.1,3.75917]
[1727529125511,0.05482678,2660.3,2660.2,3.75911]
[1727529130926,0.05482678,2660.3,2660.0,3.83456528]
[1727529131143,0.05482678,2660.3,2660.0,7.51862]
[1727529131441,0.05482678,2660.3,2660.1,3.75914]
[1727529135354,0.8227,2660.2,2660.0,3.0]
[1727529135802,0.05482678,2660.1,2660.0,3.0]
[1727529136301,0.8227,2660.2,2660.0,3.0]
[1727529136531,0.05506651,2660.1,2660.0,3.0]
[1727529136732,0.05506651,2660.1,2659.9,3.1300495]
[1727529137462,0.05506651,2660.1,2659.9,6.8895695]
[1727529139072,0.05506651,2660.1,2660.0,3.75939]
[1727529139380,3.2215416,2660.4,2660.0,3.75939]
[1727529139532,0.05506651,2660.1,2660.0,3.75939]
[1727529140077,0.05502295,2660.1,2660.0,3.75939]
[1727529140281,0.05502295,2660.1,2660.0,7.05355302]
[1727529140569,0.3931416,2660.4,2660.1,3.75915]
[1727529141878,0.3931416,2660.4,2660.0,6.12956825]
[1727529142035,0.3931416,2660.4,2660.2,3.75908]
[1727529142231,0.3931416,2660.4,2660.2,7.51812]
[1727529142432,0.3931416,2660.4,2660.2,3.75904]
[1727529144873,0.3931416,2660.4,2660.0,9.88876825]
[1727529145200,0.3931416,2660.4,2660.1,3.75924]
[1727529147060,0.3931416,2660.4,2660.2,3.7591]
[1727529147460,0.3931416,2660.4,2660.0,9.88872825]
[1727529147895,0.3931416,2660.4,2660.1,3.75923]
[1727529149286,0.3931416,2660.4,2660.2,3.75905]
[1727529149463,0.3931416,2660.4,2660.1,3.75923]
[1727529149796,0.38325641,2660.4,2660.2,3.75909]
[1727529150383,0.38325641,2660.4,2660.2,3.75911]
[1727529150690,0.38325641,2660.4,2660.3,3.75897]
[1727529151887,0.38325641,2660.4,2660.3,0.7793]
[1727529152096,0.38325641,2660.4,2660.2,3.75904]
[1727529152396,0.38325641,2660.4,2660.2,7.51807]
[1727529152705,0.38325641,2660.4,2660.2,4.88910656]
[1727529152999,0.05553867,2660.3,2660.2,4.88910656]
[1727529153169,0.05553867,2660.3,2660.2,3.75903]
[1727529153381,0.05553867,2660.3,2660.2,4.58938996]
[1727529153704,0.05553867,2660.3,2660.2,4.58935623]
[1727529154312,0.05553867,2660.3,2660.2,5.83480729]
[1727529154477,0.05553867,2660.3,2660.2,7.17245258]
[1727529154972,0.05553867,2660.3,2660.2,5.92700152]
[1727529155991,0.05553867,2660.3,2660.2,7.17236648]
[1727529156301,0.05553867,2660.3,2660.2,5.92700152]
[1727529157226,0.05553867,2660.3,2660.2,5.09667529]
[1727529157370,0.86653867,2660.3,2660.1,3.75923]
[1727529157575,0.86653867,2660.3,2660.0,3.75939]
[1727529160876,0.86653867,2660.3,2660.0,3.52966484]
[1727529166998,0.86653867,2660.3,2660.1,3.75921]
[1727529167312,0.05553867,2660.3,2660.2,3.75911]
[1727529168092,0.05553867,2660.3,2660.1,4.56683]
[1727529168294,0.05553867,2660.3,2660.1,3.75923]
[1727529176416,0.05553867,2660.3,2660.0,3.75937]
[1727529176626,0.05553867,2660.3,2659.9,0.9163411]
[1727529176826,0.05553867,2660.3,2660.0,2.07674177]
[1727529177151,0.05553867,2660.3,2660.0,3.75937]
[1727529178137,0.7938,2660.2,2659.9,0.1300495]
[1727529178339,0.05550964,2660.1,2659.9,0.1300495]
[1727529178542,0.7938,2660.0,2659.9,0.1300495]
[1727529178743,0.84914984,2660.0,2659.9,0.1300495]
[1727529183009,6.60853984,2660.0,2659.9,0.1300495]
[1727529184029,2.84914984,2660.0,2659.9,0.1300495]
[1727529184348,6.60853984,2660.0,2659.9,0.1300495]
[1727529185718,2.84914984,2660.0,2659.9,0.1300495]
[1727529186348,0.05534984,2660.0,2659.9,0.1300495]
[1727529186648,5.75901,2660.3,2659.9,0.1300495]
[1727529186848,0.05482678,2660.0,2659.9,0.1300495]
[1727529187005,5.75901,2660.3,2659.9,0.1300495]
[1727529187212,0.05482678,2660.0,2659.9,0.1300495]
[1727529187543,5.75904,2660.3,2659.9,0.1300495]
[1727529187753,0.05482678,2660.0,2659.9,0.1300495]
[1727529188257,2.0,2660.3,2659.9,0.1300495]
[1727529188407,0.05495028,2660.0,2659.9,0.1300495]
[1727529188611,8.3333,2660.2,2659.9,0.1300495]
[1727529188942,4.57409,2660.2,2659.9,0.1300495]
[1727529189155,0.05506652,2660.1,2659.9,0.1300495]
[1727529190816,3.81432652,2660.1,2659.9,0.1300495]
[1727529191260,3.75939,2660.0,2659.9,0.1300495]
[1727529191634,5.75939,2660.0,2659.9,0.1300495]
[1727529191835,5.81435481,2660.0,2659.9,0.1300495]
[1727529192368,6.62925481,2660.0,2659.9,0.1300495]
[1727529204335,7.80054559,2660.0,2659.9,0.1300495]
[1727529207433,6.62925481,2660.0,2659.9,0.1300495]
[1727529207633,8.58094218,2660.0,2659.9,0.1300495]
[1727529208781,6.62925481,2660.0,2659.9,0.1300495]
[1727529209643,5.81435481,2660.0,2659.9,0.1300495]
[1727529211172,0.05496481,2660.0,2659.9,0.1300495]
[1727529211341,2.0,2660.3,2659.9,4.93298227]
[1727529211682,0.05082488,2660.2,2659.9,4.93297227]
[1727529211979,2.0,2660.3,2659.9,4.93297227]
[1727529212352,0.05086121,2660.2,2659.9,4.93297227]
[1727529212545,2.0,2660.3,2659.9,4.93297227]
[1727529212750,0.05086121,2660.2,2660.1,3.75922]
[1727529212973,2.0,2660.6,2660.2,0.7921]
[1727529213180,3.81005256,2660.5,2660.2,0.7921]
[1727529216893,0.05136256,2660.5,2660.2,0.7921]
[1727529218505,0.05136256,2660.5,2660.3,4.54908]
[1727529219712,0.05136256,2660.5,2660.3,0.7902]
[1727529221463,0.8166,2660.4,2659.9,0.1300495]
[1727529221678,0.05136256,2660.5,2660.2,0.7902]
[1727529221878,0.05179842,2660.3,2660.2,0.7902]
[1727529222118,3.75869,2660.5,2660.2,0.7902]
[1727529222331,0.05172578,2660.3,2660.2,0.7902]
[1727529222496,3.75869,2660.5,2660.2,0.7902]
[1727529222686,0.05172578,2660.3,2660.2,0.7902]
[1727529223325,5.75862,2660.6,2660.2,0.7902]
[1727529223494,0.05159502,2660.3,2660.2,0.7902]
[1727529223716,5.75862,2660.6,2660.2,1.245143]
[1727529223879,0.05159502,2660.3,2660.2,0.7902]
[1727529224086,5.75862,2660.6,2660.2,0.7902]
[1727529224582,3.81029502,2660.5,2660.2,0.7902]
[1727529226004,3.75887,2660.4,2660.2,0.7902]
[1727529226219,3.81029502,2660.5,2660.2,0.7902]
[1727529226419,0.05162409,2660.3,2659.9,3.8894695]
[1727529226620,3.7587,2660.5,2660.0,0.7902]
[1727529226823,0.05162409,2660.2,2660.0,0.7902]
[1727529227121,3.7587,2660.5,2660.0,0.7902]
[1727529227733,0.05162409,2660.4,2660.0,0.7902]
[1727529228891,3.75899,2660.3,2660.0,0.7902]
[1727529229131,0.05162409,2660.4,2660.0,0.7902]
[1727529229410,0.05162409,2660.3,2660.0,0.7902]
[1727529232022,3.7587,2660.5,2660.0,0.7902]
[1727529232023,0.05162409,2660.2,2660.0,0.7902]
[1727529232428,7.51749,2660.5,2660.0,0.7902]
[1727529232729,0.05162409,2660.1,2660.0,0.7902]
[1727529232976,3.7587,2660.5,2660.0,0.7902]
[1727529233129,0.05162409,2660.1,2660.0,0.7902]
[1727529233288,3.7587,2660.5,2660.0,0.7902]
[1727529233289,7.51748,2660.5,2660.0,0.7902]
[1727529233491,0.05162409,2660.1,2660.0,0.7902]
[1727529233692,3.7587,2660.5,2660.0,0.7902]
[1727529233891,0.05162409,2660.1,2660.0,0.7902]
[1727529234126,3.7587,2660.5,2660.0,0.7902]
[1727529234299,0.05162409,2660.1,2660.0,0.7902]
[1727529234505,3.7587,2660.5,2660.0,4.54957]
[1727529234702,0.05162409,2660.1,2660.0,0.7902]
[1727529234918,7.51748,2660.5,2660.0,0.7902]
[1727529235095,0.05162409,2660.1,2660.0,4.54959]
[1727529235295,7.5175,2660.5,2660.0,0.7902]
[1727529235550,0.05162409,2660.1,2660.0,0.7902]
[1727529235713,3.75883,2660.4,2660.0,0.7902]
[1727529236242,0.05162409,2660.3,2660.0,0.7902]
[1727529237739,0.05162409,2660.3,2660.0,4.54954]
[1727529238103,7.34949645,2660.6,2660.1,3.75923]
[1727529238335,0.05152237,2660.2,2660.1,3.75923]
[1727529238538,7.34950645,2660.6,2660.1,3.75923]
[1727529238705,0.05152237,2660.2,2660.1,3.75923]
[1727529238903,7.34950645,2660.6,2660.1,3.75923]
[1727529239541,0.05155144,2660.5,2660.1,3.75923]
[1727529240515,0.05155144,2660.5,2660.0,8.30885]
[1727529240718,3.81028144,2660.5,2660.0,4.54951]
[1727529240912,0.05155144,2660.5,2660.0,4.54951]
[1727529241240,0.05155144,2660.5,2660.1,3.75919]
[1727529241458,0.05155144,2660.5,2660.2,2.38953645]
[1727529241634,0.05155144,2660.5,2660.4,3.75883]
[1727529241949,5.75815,2660.9,2660.4,3.75883]
[1727529242453,0.05168221,2660.8,2660.3,4.55757]
[1727529242749,0.05168221,2660.8,2660.4,3.75875]
[1727529243903,0.05168221,2660.8,2660.5,3.75869]
[1727529244107,0.05168221,2660.8,2660.6,4.55713]
[1727529244326,0.05168221,2660.8,2660.6,0.7986]
[1727529246242,0.05168221,2660.8,2660.2,3.75908]
[1727529246243,3.7584,2660.7,2660.2,3.75908]
[1727529246610,0.05150739,2660.6,2660.2,3.75908]
[1727529247540,0.05150739,2660.6,2660.1,3.75915]
[1727529247757,0.05150739,2660.6,2660.3,3.75894]
[1727529248047,0.05150739,2660.5,2660.3,3.75894]
[1727529248543,6.15732645,2660.8,2660.3,3.75894]
[1727529248855,6.15732645,2660.8,2660.3,3.75889]
[1727529249050,0.05152192,2660.7,2660.3,3.75888]
[1727529249342,0.05152192,2660.7,2660.4,0.7986]
[1727529249542,2.0,2660.9,2660.4,0.7986]
[1727529249543,2.0,2660.9,2660.6,3.75847]
[1727529249951,2.0,2660.9,2660.8,0.7986]
[1727529250813,5.75779,2661.2,2660.8,0.7986]
[1727529251023,2.0,2661.2,2660.9,3.75811]
[1727529251409,3.75752,2661.4,2660.9,3.75804]
[1727529252269,2.0,2661.5,2660.9,3.75804]
[1727529252488,5.75732,2661.5,2661.1,0.7986]
[1727529256759,9.51473,2661.5,2661.1,0.7986]
[1727529256963,5.75732,2661.5,2661.1,0.7986]
[1727529257870,0.04777914,2661.4,2661.1,0.7986]
[1727529259573,3.80519914,2661.4,2661.1,0.7986]
[1727529259887,0.04777914,2661.4,2661.1,0.7986]
[1727529260197,0.04777914,2661.4,2661.1,1.3737064]
[1727529263389,3.80519914,2661.4,2661.1,0.073882]
[1727529263557,4.63009914,2661.4,2661.1,0.073882]
[1727529266165,3.7577,2661.2,2661.1,0.073882]
[1727529266486,3.80396314,2661.2,2661.1,0.073882]
[1727529268305,0.04626314,2661.2,2661.1,0.073882]
[1727529268608,3.75764,2661.3,2661.1,0.073882]
[1727529268789,0.04615416,2661.2,2661.1,0.073882]
[1727529268992,3.75742,2661.4,2661.1,0.841682]
[1727529269167,0.04606696,2661.3,2661.1,0.841682]
[1727529271269,2.0,2661.5,2661.1,5.4352882]
[1727529271574,2.0,2661.5,2661.1,4.599452]
[1727529271775,0.04454293,2661.4,2661.1,8.357202]
[1727529272001,0.04454293,2661.4,2661.1,4.599432]
[1727529272196,0.04454293,2661.4,2661.1,5.25351545]
[1727529272576,0.04454293,2661.4,2661.1,9.01125545]
[1727529272892,0.04454293,2661.4,2661.1,5.25350545]
[1727529273097,0.04454293,2661.4,2661.3,4.52536]
[1727529273315,5.75686,2661.8,2661.3,1.67641601]
[1727529273316,3.757,2661.7,2661.3,1.67641601]
[1727529273488,0.04464473,2661.4,2661.3,0.7678]
[1727529273686,3.757,2661.7,2661.3,0.7678]
[1727529273888,0.04464473,2661.4,2661.3,0.7678]
[1727529274118,3.75716,2661.6,2661.3,0.7678]
[1727529274331,0.04470287,2661.4,2661.3,0.7678]
[1727529274540,3.75716,2661.6,2661.3,0.7678]
[1727529274987,0.04478287,2661.5,2661.3,0.7678]
[1727529275413,0.04478287,2661.5,2661.1,3.831712]
[1727529275414,0.04478287,2661.5,2661.1,4.599512]
[1727529275585,0.04478287,2661.5,2661.1,5.3584732]
[1727529275786,0.04478287,2661.5,2661.1,1.6006432]
[1727529276401,3.80207287,2661.5,2661.1,1.6006432]
[1727529277990,3.80207287,2661.5,2661.1,0.841682]
[1727529278188,0.04478287,2661.5,2661.1,0.841682]
[1727529278422,1.58981267,2661.4,2661.1,0.073882]
[1727529278729,5.34730267,2661.4,2661.1,0.073882]
[1727529278932,0.04478287,2661.3,2661.1,0.073882]
[1727529282702,5.75733,2661.5,2661.1,0.073882]
[1727529282907,0.04313377,2661.2,2661.1,0.073882]
[1727529283117,5.75733,2661.5,2661.1,0.073882]
[1727529283293,0.04313377,2661.2,2661.1,0.073882]
[1727529283627,3.75742,2661.4,2661.1,0.073882]
[1727529283797,0.04313377,2661.3,2661.1,0.073882]
[1727529284427,5.75733,2661.5,2661.1,0.073882]
[1727529284621,0.04314831,2661.4,2661.1,0.073882]
[1727529284832,3.75767,2661.3,2661.1,0.073882]
[1727529284994,4.5485,2661.2,2661.1,0.073882]
[1727529285197,6.5485,2661.2,2661.1,0.073882]
[1727529285393,2.04314831,2661.2,2661.1,0.073882]
[1727529286237,0.04314831,2661.2,2661.1,0.073882]
[1727529286444,4.54824,2661.4,2661.1,0.073882]
[1727529286598,0.04303197,2661.2,2661.1,0.073882]
[1727529286803,3.75744,2661.4,2661.1,0.073882]
[1727529287007,0.04303197,2661.3,2661.1,0.073882]
[1727529288931,3.80060197,2661.3,2661.1,0.073882]
[1727529289445,0.04303197,2661.3,2661.1,0.073882]
[1727529292359,3.80059197,2661.3,2661.1,0.073882]
[1727529292925,0.04303197,2661.3,2661.1,0.073882]
[1727529293327,3.7577,2661.2,2661.1,0.073882]
[1727529293757,3.80022377,2661.2,2661.1,0.073882]
[1727529294426,5.80022377,2661.2,2661.1,0.073882]
[1727529294627,6.97079719,2661.2,2661.1,0.073882]
[1727529295358,5.80022377,2661.2,2661.1,0.073882]
[1727529295655,6.97504102,2661.2,2661.1,0.073882]
[1727529296222,5.80022377,2661.2,2661.1,0.073882]
[1727529296463,6.97500543,2661.2,2661.1,0.073882]
[1727529297657,5.80022377,2661.2,2661.1,0.073882]
[1727529297973,6.97489348,2661.2,2661.1,0.073882]
[1727529301575,7.77929348,2661.2,2661.1,0.073882]
[1727529301734,6.60462377,2661.2,2661.1,0.073882]
[1727529301940,9.60462377,2661.2,2661.1,0.073882]
[1727529303681,17.65766549,2661.2,2661.1,0.073882]
[1727529303973,15.70302746,2661.2,2661.1,0.073882]
[1727529304170,12.2584209,2661.2,2661.1,0.073882]
[1727529304544,12.2584209,2661.2,2659.7,0.8089]
[1727529304545,3.75963,2659.9,2659.7,0.8089]
[1727529304749,3.75963,2659.9,2659.2,5.726189]
[1727529304750,3.75978,2659.8,2659.3,0.8089]
[1727529304945,3.79972137,2659.8,2659.3,0.8089]
[1727529305455,0.03994137,2659.8,2659.3,0.8089]
[1727529305661,0.03994137,2659.8,2659.5,4.55398]
[1727529305832,5.75924,2660.2,2659.5,4.55398]
[1727529305833,3.75926,2660.1,2659.6,0.7939]
[1727529306236,0.03948295,2660.0,2659.7,0.7939]
[1727529306454,13.24874,2660.5,2659.9,0.7939]
[1727529306634,0.03943201,2660.4,2660.1,0.7939]
[1727529307576,0.03943201,2660.4,2660.3,0.7939]
[1727529307873,0.03938107,2660.4,2660.3,0.7939]
[1727529308283,5.75836,2660.8,2660.3,0.7939]
[1727529309648,9.51675,2660.8,2660.3,0.7939]
[1727529309848,5.75836,2660.8,2660.3,0.7939]
[1727529310389,3.75841,2660.7,2660.3,0.7939]
[1727529312590,3.75813,2660.9,2660.3,0.7939]
[1727529312774,3.75827,2660.8,2660.3,0.7939]
[1727529312982,3.75827,2660.8,2660.4,0.46280946]
[1727529313700,3.75835,2660.8,2660.4,0.46280946]
[1727529314192,3.75807,2661.0,2660.5,0.7939]
[1727529314488,2.0,2661.1,2660.5,4.55258]
[1727529314706,13.24745,2661.4,2660.9,0.7939]
[1727529314992,17.005,2661.4,2660.9,0.7939]
[1727529315152,13.24745,2661.4,2660.9,0.7939]
[1727529315565,13.32173663,2661.8,2660.9,5.03818222]
[1727529315566,3.75716,2661.6,2660.9,5.03818222]
[1727529315777,3.75765,2661.3,2661.0,0.8005]
[1727529316067,2.7679,2661.4,2660.7,0.8005]
[1727529316302,3.75784,2661.1,2660.7,2.24681425]
[1727529317966,0.04085058,2661.0,2660.7,2.24681425]
[1727529318888,0.04085058,2661.0,2660.7,0.8005]
[1727529319107,3.75771,2661.2,2660.7,0.8005]
[1727529319403,0.04101786,2660.9,2660.7,4.5589]
[1727529319583,3.75764,2661.3,2660.8,0.75589]
[1727529319959,0.04101786,2661.2,2660.8,0.75589]
[1727529320393,3.75764,2661.3,2660.8,0.75589]
[1727529320394,7.51528,2661.3,2660.8,0.75589]
[1727529320606,0.04101786,2661.1,2660.8,0.75589]
[1727529320796,7.51529,2661.3,2660.8,0.75589]
[1727529320972,0.04101786,2661.0,2660.8,0.75589]
[1727529321389,7.51529,2661.3,2660.8,0.75589]
[1727529321695,0.04101786,2660.9,2660.8,0.75589]
[1727529321896,0.04101786,2660.9,2660.7,4.5589]
[1727529322071,3.75772,2661.2,2660.7,4.5589]
[1727529322461,0.04101786,2661.1,2660.7,4.5589]
[1727529323498,0.0410324,2661.0,2660.7,4.5589]
[1727529323861,3.75774,2661.2,2660.7,4.5589]
[1727529324201,0.0410324,2661.1,2660.8,4.55875]
[1727529324375,0.0410324,2661.1,2661.0,3.75798]
[1727529324572,3.75735,2661.5,2661.0,3.75798]
[1727529324759,0.03963555,2661.1,2661.0,3.75798]
[1727529324960,3.75714,2661.6,2661.0,3.75798]
[1727529325173,5.75707,2661.7,2661.0,4.589639]
[1727529325174,0.03963555,2661.1,2661.0,4.589639]
[1727529325506,3.75728,2661.5,2661.0,3.75798]
[1727529325670,5.75707,2661.7,2661.0,3.75798]
[1727529325671,3.75717,2661.6,2661.0,3.75798]
[1727529325999,0.03963555,2661.5,2661.0,3.75798]
[1727529326666,0.03963555,2661.5,2661.2,0.7624]
[1727529326886,5.75707,2661.7,2661.2,0.7624]
[1727529327090,0.03963555,2661.6,2661.2,0.7624]
[1727529327387,3.79684555,2661.6,2661.2,0.7624]
[1727529328405,0.03963555,2661.6,2661.2,0.7624]
[1727529328720,3.75731,2661.5,2661.2,0.7624]
[1727529329121,0.03963555,2661.4,2661.2,0.7624]
[1727529329683,9.51415,2661.7,2661.2,0.7624]
[1727529330009,0.03963555,2661.6,2661.2,0.452023]
[1727529330201,0.03963555,2661.6,2661.3,0.7624]
[1727529330749,0.03963555,2661.6,2661.3,4.51992]
[1727529331028,0.03963555,2661.6,2661.3,0.7624]
[1727529331386,3.79684555,2661.6,2661.3,0.7624]
[1727529331821,3.82734107,2661.6,2661.3,0.7624]
[1727529332035,0.07013107,2661.6,2661.3,0.7624]
[1727529333288,3.75728,2661.5,2661.3,0.7624]
[1727529333625,0.07032007,2661.4,2661.1,0.7624]
[1727529333815,3.82774007,2661.4,2661.1,0.7624]
[1727529334124,3.75757,2661.3,2661.1,0.7624]
[1727529334283,3.82787553,2661.3,2661.1,0.7624]
[1727529334488,3.82787553,2661.3,2660.9,0.7624]
[1727529334687,0.07030553,2661.3,2660.9,4.52052]
[1727529334991,4.51608,2661.5,2660.9,8.27864]
[1727529335215,0.07022559,2661.2,2660.9,8.27857]
[1727529335399,4.51608,2661.5,2660.9,8.27857]
[1727529335598,0.07022559,2661.1,2661.0,3.75798]
[1727529335809,8.27348,2661.5,2660.9,4.52045]
[1727529336014,0.07022559,2661.1,2660.9,9.030545]
[1727529336216,3.75743,2661.4,2660.9,4.52045]
[1727529336404,0.07009474,2661.0,2660.9,7.52045]
[1727529336601,3.75743,2661.4,2660.9,7.52044]
[1727529336829,0.07002931,2661.0,2660.9,7.52044]
[1727529337123,0.7588,2661.5,2661.0,3.75797]
[1727529337297,4.51608,2661.5,2661.0,3.75797]
[1727529339616,4.51608,2661.5,2661.0,3.75788]
[1727529340402,4.51608,2661.5,2661.0,7.51578]
[1727529340794,2.0,2661.7,2661.1,0.8015]
[1727529341102,2.0,2661.7,2661.2,3.7576]
[1727529341301,2.0,2661.7,2661.3,3.75754]
[1727529342025,2.0,2661.7,2661.2,3.7576]
[1727529342407,2.0,2661.7,2661.3,3.75754]
[1727529343429,2.0,2661.7,2661.4,3.75733]
[1727529343636,2.0,2661.7,2661.3,3.75754]
[1727529343804,2.0,2661.7,2661.3,3.75748]
[1727529344131,2.0,2661.7,2661.4,3.75741]
[1727529344631,2.0,2661.7,2661.3,3.75748]
[1727529345918,5.75707,2661.7,2661.2,3.75769]
[1727529346136,5.75707,2661.7,2661.3,3.75756]
[1727529347096,0.7916,2661.6,2661.0,3.75794]
[1727529347300,3.75729,2661.5,2661.0,3.75794]
[1727529348018,0.06793539,2661.4,2661.0,3.75794]
[1727529348220,3.82535539,2661.4,2661.0,3.75794]
[1727529348534,0.06793539,2661.4,2661.0,3.75794]
[1727529349033,0.06793539,2661.3,2661.0,3.75794]
[1727529349235,0.06793539,2661.3,2660.9,3.0]
[1727529349441,3.75743,2661.4,2660.9,6.75806]
[1727529349638,0.85941167,2661.2,2660.9,3.0]
[1727529349812,0.7916,2661.2,2660.9,3.0]
[1727529350346,0.06779711,2661.1,2660.8,4.55973]
[1727529350519,0.06779711,2661.1,2660.8,0.8015]
[1727529351046,0.06779711,2661.1,2660.8,4.55976]
[1727529351248,3.82572711,2661.1,2660.7,3.0]
[1727529353411,0.06779711,2661.1,2660.7,3.0]
[1727529356545,0.06779711,2661.1,2660.7,6.7584]
[1727529356712,0.06779711,2661.1,2660.7,8.26608]
[1727529357263,0.06779711,2661.1,2660.7,4.50768]
[1727529357428,0.06779711,2661.1,2660.7,1.50768]
[1727529357857,0.06779711,2661.1,2660.6,7.56002]
[1727529358223,3.82571711,2661.1,2660.6,7.56002]
[1727529358426,3.75799,2661.0,2660.6,3.8015]
[1727529358641,3.82291648,2661.0,2660.6,0.8015]
[1727529358874,0.06492648,2661.0,2660.6,4.56004]
[1727529359163,8.30725,2661.2,2660.6,4.56004]
[1727529359360,0.06489005,2660.9,2660.6,4.56004]
[1727529359564,8.30721,2661.2,2660.6,5.64153423]
[1727529359728,0.06489005,2660.8,2660.6,4.55995]
[1727529360071,8.30719,2661.2,2660.6,4.55995]
[1727529360234,0.06489005,2660.7,2660.6,4.55995]
[1727529360562,4.54939,2661.2,2660.7,3.75831]
[1727529360931,0.06489733,2661.1,2660.7,3.75831]
[1727529361133,0.06489733,2661.1,2660.6,4.55995]
[1727529361332,0.06489733,2661.1,2660.7,3.7584]
[1727529362769,3.82273733,2661.1,2660.6,4.55995]
[1727529363065,3.82273733,2661.1,2660.6,5.14085511]
[1727529365775,0.8012,2661.0,2660.6,3.75845]
[1727529366442,0.06489733,2660.9,2660.6,3.75845]
[1727529370079,3.75784,2661.1,2660.6,3.75845]
[1727529370289,0.06489733,2660.8,2660.6,3.75845]
[1727529370583,0.06489733,2660.7,2660.6,4.63338895]
[1727529370787,0.06489733,2660.7,2660.6,3.75845]
[1727529370974,3.75784,2661.1,2660.6,3.75845]
[1727529371169,0.06486087,2660.7,2660.6,3.75845]
[1727529371372,3.75784,2661.1,2660.6,3.75845]
[1727529371577,0.06486087,2660.7,2660.6,3.75845]
[1727529371743,3.75784,2661.1,2660.6,4.63338895]
[1727529371951,3.82296087,2661.0,2660.5,3.75866]
[1727529372251,4.55932,2660.9,2660.5,3.75866]
[1727529372685,0.06483901,2660.8,2660.5,7.51732]
[1727529373011,0.06483901,2660.8,2660.5,1.25514893]
[1727529373342,0.06483901,2660.8,2660.5,3.75865]
[1727529374891,0.8012,2660.4,2660.0,0.7694]
[1727529375190,0.8012,2660.4,2659.8,1.24785151]
[1727529375191,0.06470055,2660.3,2659.8,1.24785151]
[1727529375486,3.75913,2660.2,2659.8,1.02020206]
[1727529375725,3.75913,2660.2,2659.6,4.52931]
[1727529375726,0.8012,2660.1,2659.6,4.52931]
[1727529375875,0.86588597,2660.1,2659.6,3.75991]
[1727529376584,0.86588597,2660.1,2659.7,3.7598]
[1727529376751,0.86588597,2660.1,2659.7,4.811787]
[1727529377557,0.86588597,2660.1,2659.7,3.7598]
[1727529377763,3.75955,2659.9,2659.3,3.7603]
[1727529377998,4.58699,2660.0,2659.5,3.76009]
[1727529378499,0.06363621,2659.9,2659.4,0.45523]
[1727529378864,4.58736,2659.7,2659.2,0.792]
[1727529379060,0.8275,2659.7,2659.2,3.792]
[1727529379297,0.06340282,2659.6,2659.2,3.792]
[1727529379530,0.06340282,2659.6,2659.3,1.500257]
[1727529379810,0.06340282,2659.6,2659.3,5.260527]
[1727529383177,4.58705,2659.9,2659.3,5.260527]
[1727529383375,5.34726999,2661.2,2659.7,3.75981]
[1727529383376,0.8275,2660.1,2659.7,3.75981]
[1727529383575,2.0,2660.2,2659.8,0.375981]
[1727529383819,4.58642,2660.4,2659.8,0.45116648]
[1727529384111,4.58642,2660.4,2659.8,0.375981]
[1727529384330,4.58642,2660.4,2659.9,4.18059165]
[1727529384914,4.58641,2660.4,2659.9,0.42109165]
[1727529385479,4.58641,2660.4,2660.0,0.41807516]
[1727529386117,4.58641,2660.4,2659.9,4.18062165]
[1727529386323,8.34533,2660.4,2659.9,4.18062165]
[1727529386703,3.75898,2660.3,2659.9,0.42109165]
[1727529391226,3.7592,2660.2,2659.9,0.42109165]
[1727529391831,3.75929,2660.1,2659.6,6.75995]
[1727529392929,3.75929,2660.1,2659.6,3.0]
[1727529393132,0.0635487,2660.0,2659.7,4.515012]
[1727529394708,3.75911,2660.2,2659.7,4.515012]
[1727529394912,0.06349036,2659.9,2659.7,4.515012]
[1727529395111,3.75911,2660.2,2659.7,4.515012]
[1727529395311,0.06349036,2659.8,2659.7,4.515012]
[1727529395923,3.75911,2660.2,2659.7,4.515012]
[1727529396438,3.82284036,2660.1,2659.5,4.55202]
[1727529396603,3.82284036,2660.1,2659.6,3.75992]
[1727529397298,0.7888,2660.0,2659.5,4.55202]
[1727529397503,0.7888,2660.0,2659.3,1.500257]
[1727529397504,3.75954,2659.9,2659.3,6.039647]
[1727529397839,0.7888,2659.6,2659.3,4.500257]
[1727529398197,0.06334449,2659.5,2659.3,4.500257]
[1727529400141,0.06334449,2659.5,2659.3,8.260627]
[1727529400301,0.06334449,2659.5,2659.4,1.2021077]
[1727529400718,0.06334449,2659.5,2659.3,3.0]
[1727529400915,0.06334449,2659.5,2659.3,6.76036]
[1727529401200,0.06334449,2659.5,2659.3,3.0]
[1727529402237,0.06334449,2659.5,2659.3,6.76038]